Workbook

Sheet 高中
A1: 2024年临川区公开招聘中小学教师考生成绩表
A2: 招聘岗位：高中-地理 （县镇岗位）
A3: 抽签顺序号 | B3: 准考证号码 | C3: 姓 名 | D3: 文化考试成绩 | F3: 笔试成绩折算分 | G3: 面试 成绩 | H3: 面试成绩折算分 | I3: 总成绩 | J3: 备注
D4: 综合知识成绩及学科专业成绩 | E4: 总分
A5: 1 | B5: 153250210009,253250210009 | C5: 周琴华 | D5: 教育综合知识51.500,地理（高中）106.500 | E5: 158 | F5: 31.60 | G5: 74.67 | H5: 37.34 | I5: =F5+H5 -> 68.94
A6: 2 | B6: 153011703628,253011703628 | C6: 曹东岭 | D6: 教育综合知识40.500,地理（高中）114.500 | E6: 155 | F6: 31.00 | G6: 83.00 | H6: 41.50 | I6: =F6+H6 -> 72.50
A7: 3 | B7: 153040105628,253040105628 | C7: 陈莹 | D7: 教育综合知识72.000,地理（高中）116.500 | E7: 188.5 | F7: 37.70 | G7: 86.67 | H7: 43.34 | I7: =F7+H7 -> 81.04
A8: 4 | B8: 153250210112,253250210112 | C8: 付志强 | D8: 教育综合知识51.000,地理（高中）114.000 | E8: 165 | F8: 33.00 | G8: 缺考 | I8: =F8+H8 -> 33.00
A20: 2024年临川区公开招聘中小学教师考生成绩表
A21: 招聘岗位：高中-地理 （应届）（县镇岗位）
A22: 抽签顺序号 | B22: 准考证号码 | C22: 姓 名 | D22: 文化考试成绩 | F22: 笔试成绩折算分 | G22: 面试 成绩 | H22: 面试成绩折算分 | I22: 总成绩 | J22: 备注
D23: 综合知识成绩及学科专业成绩 | E23: 总分
A24: 1 | B24: 153250210015,253250210015 | C24: 邓萌萌 | D24: 教育综合知识63.000,地理（高中）114.500 | E24: 177.5 | F24: 35.50 | G24: 81.33 | H24: 40.67 | I24: =F24+H24 -> 76.17
A25: 2 | B25: 153040105701,253040105701 | C25: 邹青燕 | D25: 教育综合知识74.500,地理（高中）123.500 | E25: 198 | F25: 39.60 | G25: 86.33 | H25: 43.17 | I25: 82.77
A26: 3 | B26: 153060106620,253060106620 | C26: 汪娜 | D26: 教育综合知识51.500,地理（高中）118.000 | E26: 169.5 | F26: 33.90 | G26: 84.33 | H26: 42.17 | I26: 76.07
A27: 4 | B27: 153250210103,253250210103 | C27: 顾修逸 | D27: 教育综合知识48.000,地理（高中）104.500 | E27: 152.5 | F27: 30.50 | G27: 83.33 | H27: 41.67 | I27: 72.17
A28: 5 | B28: 153040105517,253040105517 | C28: 李晨 | D28: 教育综合知识51.000,地理（高中）104.000 | E28: 155 | F28: 31.00 | G28: 75.67 | H28: 37.84 | I28: 68.84
A29: 6 | B29: 153011703410,253011703410 | C29: 易紫琳 | D29: 教育综合知识44.500,地理（高中）88.000 | E29: 132.5 | F29: 26.50 | G29: 77.67 | H29: 38.84 | I29: 65.34
A30: 7 | B30: 153250210011,253250210011 | C30: 梁惠 | D30: 教育综合知识36.000,地理（高中）118.500 | E30: 154.5 | F30: 30.90 | G30: 77.67 | H30: 38.84 | I30: 69.74
A39: 2024年临川区公开招聘中小学教师考生成绩表
A40: 招聘岗位：高中-化学（县镇岗位）
A41: 抽签顺序号 | B41: 准考证号码 | C41: 姓 名 | D41: 文化考试成绩 | F41: 笔试成绩折算分 | G41: 面试 成绩 | H41: 面试成绩折算分 | I41: 总成绩 | J41: 备注
D42: 综合知识成绩及学科专业成绩 | E42: 总分
A43: 1 | B43: 153250210207,253250210207 | C43: 曾赞阳 | D43: 教育综合知识55.500,化学（高中）124.500 | E43: 180 | F43: 36.00 | G43: 83.00 | H43: 41.50 | I43: =F43+H43 -> 77.50
A44: 2 | B44: 153011102918,253011102918 | C44: 陈翠 | D44: 教育综合知识62.000,化学（高中）118.000 | E44: 180 | F44: 36.00 | G44: 82.33 | H44: 41.17 | I44: 77.17
A45: 3 | B45: 153250210217,253250210217 | C45: 尤燕强 | D45: 教育综合知识61.500,化学（高中）131.500 | E45: 193 | F45: 38.60 | G45: 82.00 | H45: 41.00 | I45: 79.60
A46: 4 | B46: 153250210216,253250210216 | C46: 徐翠翠 | D46: 教育综合知识78.500,化学（高中）134.500 | E46: 213 | F46: 42.60 | G46: 86.33 | H46: 43.17 | I46: 85.77
A47: 5 | B47: 153230401102,253230401102 | C47: 王一文 | D47: 教育综合知识63.500,化学（高中）131.500 | E47: 195 | F47: 39.00 | G47: 缺考 | I47: 39.00
A48: 6 | B48: 153250210301,253250210301 | C48: 汪丽萍 | D48: 教育综合知识65.500,化学（高中）130.500 | E48: 196 | F48: 39.20 | G48: 80.33 | H48: 40.17 | I48: 79.37
A58: 2024年临川区公开招聘中小学教师考生成绩表
A59: 招聘岗位：高中-化学（应届）（县镇岗位）
A60: 抽签顺序号 | B60: 准考证号码 | C60: 姓 名 | D60: 文化考试成绩 | F60: 笔试成绩折算分 | G60: 面试 成绩 | H60: 面试成绩折算分 | I60: 总成绩 | J60: 备注
D61: 综合知识成绩及学科专业成绩 | E61: 总分
A62: 1 | B62: 153250210305,253250210305 | C62: 王灵通 | D62: 教育综合知识37.500,化学（高中）118.000 | E62: 155.5 | F62: 31.10 | G62: 71.33 | H62: 35.67 | I62: =F62+H62 -> 66.77
A63: 2 | B63: 153011103128,253011103128 | C63: 屈雨菲 | D63: 教育综合知识41.500,化学（高中）106.000 | E63: 147.5 | F63: 29.50 | G63: 77.00 | H63: 38.50 | I63: 68.00
A64: 3 | B64: 153230401106,253230401106 | C64: 付凌云 | D64: 教育综合知识44.500,化学（高中）103.500 | E64: 148 | F64: 29.60 | G64: 82.33 | H64: 41.17 | I64: 70.77
A65: 4 | B65: 153250210227,253250210227 | C65: 黄静雯 | D65: 教育综合知识76.500,化学（高中）106.500 | E65: 183 | F65: 36.60 | G65: 88.00 | H65: 44.00 | I65: 80.60
A66: 5 | B66: 153011103027,253011103027 | C66: 吴佳妮 | D66: 教育综合知识80.500,化学（高中）128.500 | E66: 209 | F66: 41.80 | G66: 87.00 | H66: 43.50 | I66: 85.30
A67: 6 | B67: 153230401313,253230401313 | C67: 谭再要 | D67: 教育综合知识78.000,化学（高中）109.500 | E67: 187.5 | F67: 37.50 | G67: 86.00 | H67: 43.00 | I67: 80.50
A68: 7 | B68: 153060106703,253060106703 | C68: 孔令峰 | D68: 教育综合知识74.000,化学（高中）115.500 | E68: 189.5 | F68: 37.90 | G68: 86.67 | H68: 43.34 | I68: 81.24
A77: 2024年临川区公开招聘中小学教师考生成绩表
A78: 招聘岗位：高中-历史（县镇岗位）
A79: 抽签顺序号 | B79: 准考证号码 | C79: 姓 名 | D79: 文化考试成绩 | F79: 笔试成绩折算分 | G79: 面试 成绩 | H79: 面试成绩折算分 | I79: 总成绩 | J79: 备注
D80: 综合知识成绩及学科专业成绩 | E80: 总分
A81: 1 | B81: 153250209922,253250209922 | C81: 赵翠娥 | D81: 教育综合知识84.500,历史（高中）117.000 | E81: 201.5 | F81: 40.30 | G81: 83.33 | H81: 41.67 | I81: =F81+H81 -> 81.97
A82: 2 | B82: 153011802228,253011802228 | C82: 江志龙 | D82: 教育综合知识58.500,历史（高中）115.500 | E82: 174 | F82: 34.80 | G82: 77.67 | H82: 38.84 | I82: 73.64
A83: 3 | B83: 153230400515,253230400515 | C83: 李梦婷 | D83: 教育综合知识71.000,历史（高中）121.500 | E83: 192.5 | F83: 38.50 | G83: 81.00 | H83: 40.50 | I83: 79.00
A84: 4 | B84: 153240601930,253240601930 | C84: 徐思瑜 | D84: 教育综合知识44.500,历史（高中）126.000 | E84: 170.5 | F84: 34.10 | G84: 80.00 | H84: 40.00 | I84: 74.10
A85: 5 | B85: 153250209907,253250209907 | C85: 黄蓉 | D85: 教育综合知识40.500,历史（高中）118.500 | E85: 159 | F85: 31.80 | G85: 缺考 | I85: 31.80
A96: 2024年临川区公开招聘中小学教师考生成绩表
A97: 招聘岗位：高中-历史(应届)（县镇岗位）临川十六中
A98: 抽签顺序号 | B98: 准考证号码 | C98: 姓 名 | D98: 文化考试成绩 | F98: 笔试成绩折算分 | G98: 面试 成绩 | H98: 面试成绩折算分 | I98: 总成绩 | J98: 备注
D99: 综合知识成绩及学科专业成绩 | E99: 总分
A100: 1 | B100: 153250209904,253250209904 | C100: 胡蓉 | D100: 教育综合知识44.000,历史（高中）102.500 | E100: 146.5 | F100: 29.30 | G100: 75.00 | H100: 37.50 | I100: =F100+H100 -> 66.80
A101: 2 | B101: 153250209910,253250209910 | C101: 刘家豪 | D101: 教育综合知识41.000,历史（高中）99.500 | E101: 140.5 | F101: 28.10 | G101: 72.67 | H101: 36.34 | I101: =F101+H101 -> 64.44
A102: 3 | B102: 153210705908,253210705908 | C102: 周舒淇 | D102: 教育综合知识75.000,历史（高中）115.000 | E102: 190.0 | F102: 38.00 | G102: 81.67 | H102: 40.84 | I102: =F102+H102 -> 78.84
A115: 2024年临川区公开招聘中小学教师考生成绩表
A116: 招聘岗位：高中-美术（应届）（县镇岗位）
A117: 抽签顺序号 | B117: 准考证号码 | C117: 姓 名 | D117: 文化考试成绩 | F117: 笔试成绩折算分 | G117: 面试 成绩 | H117: 面试成绩折算分 | I117: 总成绩 | J117: 备注
D118: 综合知识成绩及学科专业成绩 | E118: 总分
A119: 1 | B119: 153011703210,253011703210 | C119: 易淑敏 | D119: 教育综合知识81.000,美术（高中）88.000 | E119: 169 | F119: 27.04 | G119: 78.80 | H119: 47.28 | I119: =F119+H119 -> 74.32
A120: 2 | B120: 153040205627,253040205627 | C120: 周贞妮 | D120: 教育综合知识84.000,美术（高中）86.500 | E120: 170.5 | F120: 27.28 | G120: 80.40 | H120: 48.24 | I120: 75.52
A121: 3 | B121: 153011702603,253011702603 | C121: 付建镕 | D121: 教育综合知识73.500,美术（高中）96.500 | E121: 170 | F121: 27.20 | G121: 81.40 | H121: 48.84 | I121: 76.04
A122: 4 | B122: 153050108618,253050108618 | C122: 廖信 | D122: 教育综合知识69.500,美术（高中）99.500 | E122: 169 | F122: 27.04 | G122: 84.60 | H122: 50.76 | I122: 77.80
A123: 5 | B123: 153011702727,253011702727 | C123: 黄奔 | D123: 教育综合知识74.000,美术（高中）94.000 | E123: 168 | F123: 26.88 | G123: 84.40 | H123: 50.64 | I123: 77.52
A124: 6 | B124: 153011702928,253011702928 | C124: 李雨蓓 | D124: 教育综合知识74.500,美术（高中）106.000 | E124: 180.5 | F124: 28.88 | G124: 84.20 | H124: 50.52 | I124: 79.40
A125: 7 | B125: 153011702805,253011702805 | C125: 彭嘉利 | D125: 教育综合知识80.500,美术（高中）99.000 | E125: 179.5 | F125: 28.72 | G125: 79.60 | H125: 47.76 | I125: 76.48
A126: 8 | B126: 153210603203,253210603203 | C126: 钟倩 | D126: 教育综合知识72.500,美术（高中）99.000 | E126: 171.5 | F126: 27.44 | G126: 84.20 | H126: 50.52 | I126: 77.96
A127: 9 | B127: 153011702609,253011702609 | C127: 张思蕾 | D127: 教育综合知识81.000,美术（高中）105.000 | E127: 186 | F127: 29.76 | G127: 86.60 | H127: 51.96 | I127: 81.72
A134: 2024年临川区公开招聘中小学教师考生成绩表
A135: 招聘岗位：高中-生物（县镇岗位）
A136: 抽签顺序号 | B136: 准考证号码 | C136: 姓 名 | D136: 文化考试成绩 | F136: 笔试成绩折算分 | G136: 面试 成绩 | H136: 面试成绩折算分 | I136: 总成绩 | J136: 备注
D137: 综合知识成绩及学科专业成绩 | E137: 总分
A138: 1 | B138: 153050109601,253050109601 | C138: 吴钦瑶 | D138: 教育综合知识48.500,生物学（高中）73.500 | E138: 122 | F138: 24.40 | G138: 74.00 | H138: 37.00 | I138: =F138+H138 -> 61.40
A139: 2 | B139: 153011702414,253011702414 | C139: 杨亚琴 | D139: 教育综合知识84.000,生物学（高中）96.000 | E139: 180 | F139: 36.00 | G139: 84.33 | H139: 42.17 | I139: 78.17
A140: 3 | B140: 153250210725,253250210725 | C140: 习大文 | D140: 教育综合知识43.000,生物学（高中）103.500 | E140: 146.5 | F140: 29.30 | G140: 76.33 | H140: 38.17 | I140: 67.47
A141: 4 | B141: 153250210822,253250210822 | C141: 彭超 | D141: 教育综合知识53.500,生物学（高中）72.500 | E141: 126 | F141: 25.20 | G141: 78.33 | H141: 39.17 | I141: 64.37
A142: 5 | B142: 153250210814,253250210814 | C142: 黄雯娅 | D142: 教育综合知识58.500,生物学（高中）84.500 | E142: 143 | F142: 28.60 | G142: 81.67 | H142: 40.84 | I142: 69.44
A143: 6 | B143: 153020105830,253020105830 | C143: 邱媛 | D143: 教育综合知识72.000,生物学（高中）92.500 | E143: 164.5 | F143: 32.90 | G143: 85.50 | H143: 42.75 | I143: 75.65
A153: 2024年临川区公开招聘中小学教师考生成绩表
A154: 招聘岗位：高中-生物（应届）（县镇岗位）
A155: 抽签顺序号 | B155: 准考证号码 | C155: 姓 名 | D155: 文化考试成绩 | F155: 笔试成绩折算分 | G155: 面试 成绩 | H155: 面试成绩折算分 | I155: 总成绩 | J155: 备注
D156: 综合知识成绩及学科专业成绩 | E156: 总分
A157: 1 | B157: 153011702211,253011702211 | C157: 宁舒娴 | D157: 教育综合知识52.500,生物学（高中）79.000 | E157: 131.5 | F157: 26.30 | G157: 84.00 | H157: 42.00 | I157: =F157+H157 -> 68.30
A158: 2 | B158: 153011702206,253011702206 | C158: 徐文慧 | D158: 教育综合知识72.500,生物学（高中）102.500 | E158: 175 | F158: 35.00 | G158: 86.67 | H158: 43.34 | I158: =F158+H158 -> 78.34
A159: 3 | B159: 153250210727,253250210727 | C159: 赖子骏 | D159: 教育综合知识45.500,生物学（高中）105.500 | E159: 151 | F159: 30.20 | G159: 73.33 | H159: 36.67 | I159: 66.87
A160: 4 | B160: 153250210805,253250210805 | C160: 徐芊 | D160: 教育综合知识76.000,生物学（高中）94.500 | E160: 170.5 | F160: 34.10 | G160: 79.00 | H160: 39.50 | I160: 73.60
A161: 5 | B161: 153250210815,253250210815 | C161: 黄媛 | D161: 教育综合知识82.500,生物学（高中）99.000 | E161: 181.5 | F161: 36.30 | G161: 83.67 | H161: 41.84 | I161: 78.14
A162: 6 | B162: 153250210724,253250210724 | C162: 章子瑶 | D162: 教育综合知识59.500,生物学（高中）72.000 | E162: 131.5 | F162: 26.30 | G162: 77.00 | H162: 38.50 | I162: 64.80
A163: 7 | B163: 153011702407,253011702407 | C163: 胡文祥 | D163: 教育综合知识57.500,生物学（高中）103.500 | E163: 161 | F163: 32.20 | G163: 80.33 | H163: 40.17 | I163: 72.37
A164: 8 | B164: 153230402018,253230402018 | C164: 占志萍 | D164: 教育综合知识73.500,生物学（高中）79.000 | E164: 152.5 | F164: 30.50 | G164: 87.83 | H164: 43.92 | I164: 74.42
A165: 9 | B165: 153250210723,253250210723 | C165: 夏紫薇 | D165: 教育综合知识59.000,生物学（高中）81.500 | E165: 140.5 | F165: 28.10 | G165: 77.00 | H165: 38.50 | I165: 66.60
A166: 10 | B166: 153011702127,253011702127 | C166: 邓炜峰 | D166: 教育综合知识80.500,生物学（高中）92.000 | E166: 172.5 | F166: 34.50 | G166: 86.00 | H166: 43.00 | I166: 77.50
A172: 2024年临川区公开招聘中小学教师考生成绩表
A173: 招聘岗位：高中-数学(应届)（县镇岗位）
A174: 抽签顺序号 | B174: 准考证号码 | C174: 姓 名 | D174: 文化考试成绩 | F174: 笔试成绩折算分 | G174: 面试 成绩 | H174: 面试成绩折算分 | I174: 总成绩 | J174: 备注
D175: 综合知识成绩及学科专业成绩 | E175: 总分
A176: 1 | B176: 153250207412,253250207412 | C176: 雷梦霞 | D176: 教育综合知识52.500,数学（高中）111.000 | E176: 163.5 | F176: 32.70 | G176: 缺考 | I176: =F176+H176 -> 32.70
A177: 2 | B177: 153011503122,253011503122 | C177: 徐敏俐 | D177: 教育综合知识73.500,数学（高中）99.000 | E177: 172.5 | F177: 34.50 | G177: 82.00 | H177: 41.00 | I177: 75.50
A178: 3 | B178: 153220102806,253220102806 | C178: 廖嘉英 | D178: 教育综合知识56.500,数学（高中）98.500 | E178: 155 | F178: 31.00 | G178: 77.67 | H178: 38.84 | I178: 69.84
A179: 4 | B179: 153250207223,253250207223 | C179: 邓晶 | D179: 教育综合知识74.500,数学（高中）96.500 | E179: 171 | F179: 34.20 | G179: 77.67 | H179: 38.84 | I179: 73.04
A180: 5 | B180: 153250207612,253250207612 | C180: 陈燕玲 | D180: 教育综合知识65.000,数学（高中）125.500 | E180: 190.5 | F180: 38.10 | G180: 83.00 | H180: 41.50 | I180: 79.60
A181: 6 | B181: 153250207417,253250207417 | C181: 刘珍艳 | D181: 教育综合知识72.000,数学（高中）95.500 | E181: 167.5 | F181: 33.50 | G181: 75.67 | H181: 37.84 | I181: 71.34
A182: 7 | B182: 153250207515,253250207515 | C182: 吴梦琴 | D182: 教育综合知识68.000,数学（高中）120.000 | E182: 188 | F182: 37.60 | G182: 84.00 | H182: 42.00 | I182: 79.60
A183: 8 | B183: 153250207713,253250207713 | C183: 高欣 | D183: 教育综合知识47.500,数学（高中）107.500 | E183: 155 | F183: 31.00 | G183: 76.00 | H183: 38.00 | I183: 69.00
A184: 9 | B184: 153011503126,253011503126 | C184: 李静研 | D184: 教育综合知识78.500,数学（高中）114.500 | E184: 193 | F184: 38.60 | G184: 84.67 | H184: 42.34 | I184: 80.94
A185: 10 | B185: 153250207225,253250207225 | C185: 刘一雪 | D185: 教育综合知识74.000,数学（高中）113.000 | E185: 187 | F185: 37.40 | G185: 81.00 | H185: 40.50 | I185: 77.90
A191: 2024年临川区公开招聘中小学教师考生成绩表
A192: 招聘岗位：高中-数学（县镇岗位）
A193: 抽签顺序号 | B193: 准考证号码 | C193: 姓 名 | D193: 文化考试成绩 | F193: 笔试成绩折算分 | G193: 面试 成绩 | H193: 面试成绩折算分 | I193: 总成绩 | J193: 备注
D194: 综合知识成绩及学科专业成绩 | E194: 总分
A195: 1 | B195: 153250207609,253250207609 | C195: 周鹏 | D195: 教育综合知识62.000,数学（高中）129.000 | E195: 191 | F195: 38.20 | G195: 82.33 | H195: 41.17 | I195: =F195+H195 -> 79.37
A196: 2 | B196: 153250207602,253250207602 | C196: 付新东 | D196: 教育综合知识70.000,数学（高中）121.500 | E196: 191.5 | F196: 38.30 | G196: 81.67 | H196: 40.84 | I196: 79.14
A197: 3 | B197: 153250207618,253250207618 | C197: 黄瓦 | D197: 教育综合知识69.500,数学（高中）129.500 | E197: 199 | F197: 39.80 | G197: 84.00 | H197: 42.00 | I197: 81.80
A198: 4 | B198: 153250207726,253250207726 | C198: 饶杰 | D198: 教育综合知识70.000,数学（高中）113.500 | E198: 183.5 | F198: 36.70 | G198: 85.33 | H198: 42.67 | I198: 79.37
A199: 5 | B199: 153250207504,253250207504 | C199: 江会芳 | D199: 教育综合知识78.000,数学（高中）131.500 | E199: 209.5 | F199: 41.90 | G199: 86.33 | H199: 43.17 | I199: 85.07
A200: 6 | B200: 153250207211,253250207211 | C200: 徐鸣 | D200: 教育综合知识73.500,数学（高中）123.000 | E200: 196.5 | F200: 39.30 | G200: 82.00 | H200: 41.00 | I200: 80.30
A210: 2024年临川区公开招聘中小学教师考生成绩表
A211: 招聘岗位：高中-思想政治（县镇岗位）
A212: 抽签顺序号 | B212: 准考证号码 | C212: 姓 名 | D212: 文化考试成绩 | F212: 笔试成绩折算分 | G212: 面试 成绩 | H212: 面试成绩折算分 | I212: 总成绩 | J212: 备注
D213: 综合知识成绩及学科专业成绩 | E213: 总分
A214: 1 | B214: 153250208911,253250208911 | C214: 衷睿 | D214: 教育综合知识50.000,思想政治（高中）77.500 | E214: 127.5 | F214: 25.50 | G214: 82.67 | H214: 41.34 | I214: =F214+H214 -> 66.84
A215: 2 | B215: 153250209012,253250209012 | C215: 赵美琪 | D215: 教育综合知识36.000,思想政治（高中）100.500 | E215: 136.5 | F215: 27.30 | G215: 77.67 | H215: 38.84 | I215: =F215+H215 -> 66.14
A216: 3 | B216: 153060106119,253060106119 | C216: 罗世卯 | D216: 教育综合知识40.000,思想政治（高中）99.500 | E216: 139.5 | F216: 27.90 | G216: 82.33 | H216: 41.17 | I216: =F216+H216 -> 69.07
A217: 4 | B217: 153210602713,253210602713 | C217: 程昕馨 | D217: 教育综合知识77.500,思想政治（高中）101.500 | E217: 179 | F217: 35.80 | G217: 88.67 | H217: 44.34 | I217: =F217+H217 -> 80.14
A218: 5 | B218: 153250208909,253250208909 | C218: 徐娜 | D218: 教育综合知识73.500,思想政治（高中）101.000 | E218: 174.5 | F218: 34.90 | G218: 89.67 | H218: 44.84 | I218: =F218+H218 -> 79.74
A229: 2024年临川区公开招聘中小学教师考生成绩表
A230: 招聘岗位：高中-思想政治（应届）（县镇岗位）
A231: 抽签顺序号 | B231: 准考证号码 | C231: 姓 名 | D231: 文化考试成绩 | F231: 笔试成绩折算分 | G231: 面试 成绩 | H231: 面试成绩折算分 | I231: 总成绩 | J231: 备注
D232: 综合知识成绩及学科专业成绩 | E232: 总分
A233: 1 | B233: 153250209023,253250209023 | C233: 卢梦云 | D233: 教育综合知识42.000,思想政治（高中）81.500 | E233: 123.5 | F233: 24.70 | G233: 82.67 | H233: 41.34 | I233: =F233+H233 -> 66.04
A234: 2 | B234: 153250209021,253250209021 | C234: 甘媛 | D234: 教育综合知识44.000,思想政治（高中）86.500 | E234: 130.5 | F234: 26.10 | G234: 82.33 | H234: 41.17 | I234: =F234+H234 -> 67.27
A235: 3 | B235: 153250209115,253250209115 | C235: 冯佳钰 | D235: 教育综合知识47.500,思想政治（高中）93.500 | E235: 141 | F235: 28.20 | G235: 87.00 | H235: 43.50 | I235: 71.70
A236: 4 | B236: 153250209006,253250209006 | C236: 邓娜 | D236: 教育综合知识42.000,思想政治（高中）79.500 | E236: 121.5 | F236: 24.30 | G236: 76.67 | H236: 38.34 | I236: 62.64
A248: 2024年临川区公开招聘中小学教师考生成绩表
A249: 招聘岗位：高中-体育与健康（县镇岗位）龙津中学
A250: 抽签顺序号 | B250: 准考证号码 | C250: 姓 名 | D250: 文化考试成绩 | F250: 笔试成绩折算分 | G250: 面试 成绩 | H250: 面试成绩折算分 | I250: 总成绩 | J250: 备注
D251: 综合知识成绩及学科专业成绩 | E251: 总分
A252: 1 | B252: 153011102303,253011102303 | C252: 黄信 | D252: 教育综合知识60.500,体育与健康（高中）103.500 | E252: 164 | F252: 32.80 | G252: 82.67 | H252: 41.34 | I252: =F252+H252 -> 74.14
A253: 2 | B253: 153250209227,253250209227 | C253: 吴丹 | D253: 教育综合知识65.500,体育与健康（高中）100.000 | E253: 165.5 | F253: 33.10 | G253: 85.00 | H253: 42.50 | I253: =F253+H253 -> 75.60
A254: 3 | B254: 153250209303,253250209303 | C254: 程龙 | D254: 教育综合知识69.000,体育与健康（高中）124.500 | E254: 193.5 | F254: 38.70 | G254: 87.67 | H254: 43.84 | I254: =F254+H254 -> 82.54
A267: 2024年临川区公开招聘中小学教师考生成绩表
A268: 招聘岗位：高中-体育与健康（限退役军人）（县镇岗位）
A269: 抽签顺序号 | B269: 准考证号码 | C269: 姓 名 | D269: 文化考试成绩 | F269: 笔试成绩折算分 | G269: 面试 成绩 | H269: 面试成绩折算分 | I269: 总成绩 | J269: 备注
D270: 综合知识成绩及学科专业成绩 | E270: 总分
A271: 1 | B271: 153210704901,253210704901 | C271: 曾繁杰 | D271: 教育综合知识62.000,体育与健康（高中）99.500 | E271: 161.5 | F271: 32.30 | G271: 80.67 | H271: 40.34 | I271: =F271+H271 -> 72.64
A272: 2 | B272: 153250209311,253250209311 | C272: 黄飞强 | D272: 教育综合知识36.500,体育与健康（高中）70.000 | E272: 106.5 | F272: 21.30 | G272: 缺考 | I272: =F272+H272 -> 21.30
A273: 3 | B273: 153250209305,253250209305 | C273: 姜军 | D273: 教育综合知识37.500,体育与健康（高中）92.500 | E273: 130 | F273: 26.00 | G273: 78.00 | H273: 39.00 | I273: =F273+H273 -> 65.00
A286: 2024年临川区公开招聘中小学教师考生成绩表
A287: 招聘岗位：高中-物理（县镇岗位）
A288: 抽签顺序号 | B288: 准考证号码 | C288: 姓 名 | D288: 文化考试成绩 | F288: 笔试成绩折算分 | G288: 面试 成绩 | H288: 面试成绩折算分 | I288: 总成绩 | J288: 备注
D289: 综合知识成绩及学科专业成绩 | E289: 总分
A290: 1 | B290: 153250210609,253250210609 | C290: 唐思望 | D290: 教育综合知识65.500,物理（高中）75.500 | E290: 141 | F290: 28.20 | G290: 77.67 | H290: 38.84 | I290: =F290+H290 -> 67.04
A291: 2 | B291: 153250210528,253250210528 | C291: 曾海燕 | D291: 教育综合知识46.500,物理（高中）82.500 | E291: 129 | F291: 25.80 | G291: 82.67 | H291: 41.34 | I291: 67.14
A292: 3 | B292: 153250210605,253250210605 | C292: 封良勇 | D292: 教育综合知识44.500,物理（高中）99.500 | E292: 144 | F292: 28.80 | G292: 76.67 | H292: 38.34 | I292: 67.14
A293: 4 | B293: 153250210529,253250210529 | C293: 曾志清 | D293: 教育综合知识66.000,物理（高中）84.500 | E293: 150.5 | F293: 30.10 | G293: 77.33 | H293: 38.67 | I293: 68.77
A294: 5 | B294: 153011701305,253011701305 | C294: 郭博 | D294: 教育综合知识57.500,物理（高中）100.000 | E294: 157.5 | F294: 31.50 | G294: 79.67 | H294: 39.84 | I294: 71.34
A295: 6 | B295: 153250210410,253250210410 | C295: 彭晓顺 | D295: 教育综合知识37.500,物理（高中）89.000 | E295: 126.5 | F295: 25.30 | G295: 74.67 | H295: 37.34 | I295: 62.64
A296: 7 | B296: 153250210501,253250210501 | C296: 付松 | D296: 教育综合知识63.500,物理（高中）91.000 | E296: 154.5 | F296: 30.90 | G296: 缺考 | I296: 30.90
A305: 2024年临川区公开招聘中小学教师考生成绩表
A306: 招聘岗位：高中-物理（应届）（县镇岗位）
A307: 抽签顺序号 | B307: 准考证号码 | C307: 姓 名 | D307: 文化考试成绩 | F307: 笔试成绩折算分 | G307: 面试 成绩 | H307: 面试成绩折算分 | I307: 总成绩 | J307: 备注
D308: 综合知识成绩及学科专业成绩 | E308: 总分
A309: 1 | B309: 153250210427,253250210427 | C309: 顾容清 | D309: 教育综合知识57.500,物理（高中）60.000 | E309: 117.5 | F309: 23.50 | G309: 77.33 | H309: 38.67 | I309: =F309+H309 -> 62.17
A310: 2 | B310: 153250210524,253250210524 | C310: 吴巧文 | D310: 教育综合知识50.500,物理（高中）68.000 | E310: 118.5 | F310: 23.70 | G310: 75.67 | H310: 37.84 | I310: 61.54
A311: 3 | B311: 153011700914,253011700914 | C311: 宋海波 | D311: 教育综合知识37.500,物理（高中）47.500 | E311: 85.0 | F311: 17.00 | G311: 79.33 | H311: 39.67 | I311: 56.67
A312: 4 | B312: 153250210602,253250210602 | C312: 王惠花 | D312: 教育综合知识54.500,物理（高中）80.500 | E312: 135 | F312: 27.00 | G312: 75.00 | H312: 37.50 | I312: 64.50
A313: 5 | B313: 153250210403,253250210403 | C313: 熊博文 | D313: 教育综合知识64.000,物理（高中）76.000 | E313: 140 | F313: 28.00 | G313: 77.67 | H313: 38.84 | I313: 66.84
A314: 6 | B314: 153250210525,253250210525 | C314: 饶文秀 | D314: 教育综合知识73.000,物理（高中）76.000 | E314: 149 | F314: 29.80 | G314: 81.00 | H314: 40.50 | I314: 70.30
A315: 7 | B315: 153250210426,253250210426 | C315: 罗莹 | D315: 教育综合知识42.500,物理（高中）36.000 | E315: 78.5 | F315: 15.70 | G315: 缺考 | I315: 15.70
A324: 2024年临川区公开招聘中小学教师考生成绩表
A325: 招聘岗位：高中-心理健康（县镇岗位）龙津中学
A326: 抽签顺序号 | B326: 准考证号码 | C326: 姓 名 | D326: 文化考试成绩 | F326: 笔试成绩折算分 | G326: 面试 成绩 | H326: 面试成绩折算分 | I326: 总成绩 | J326: 备注
D327: 综合知识成绩及学科专业成绩 | E327: 总分
A328: 1 | B328: 153250211203,253250211203 | C328: 章朦 | D328: 教育综合知识62.500,心理健康教育（高中）124.500 | E328: 187 | F328: 37.40 | G328: 缺考 | I328: =F328+H328 -> 37.40
A329: 2 | B329: 153250211210,253250211210 | C329: 詹梦 | D329: 教育综合知识63.500,心理健康教育（高中）114.000 | E329: 177.5 | F329: 35.50 | G329: 82.00 | H329: 41.00 | I329: =F329+H329 -> 76.50
A330: 3 | B330: 153250211207,253250211207 | C330: 王碧莹 | D330: 教育综合知识71.500,心理健康教育（高中）138.000 | E330: 209.5 | F330: 41.90 | G330: 86.67 | H330: 43.34 | I330: =F330+H330 -> 85.24
A343: 2024年临川区公开招聘中小学教师考生成绩表
A344: 招聘岗位： 高中-音乐（县镇岗位）龙津中学
A345: 抽签顺序号 | B345: 准考证号码 | C345: 姓 名 | D345: 文化考试成绩 | F345: 笔试成绩折算分 | G345: 面试 成绩 | H345: 面试成绩折算分 | I345: 总成绩 | J345: 备注
D346: 综合知识成绩及学科专业成绩 | E346: 总分
A347: 1 | B347: 153250209815,253250209815 | C347: 张艺 | D347: 教育综合知识67.500,音乐（高中）97.000 | E347: 164.5 | F347: 26.32 | G347: 86.00 | H347: 51.60 | I347: =F347+H347 -> 77.92
A348: 2 | B348: 153250209711,253250209711 | C348: 李鹭豪 | D348: 教育综合知识73.500,音乐（高中）111.500 | E348: 185 | F348: 29.60 | G348: 81.00 | H348: 48.60 | I348: 78.20
A349: 3 | B349: 153011801921,253011801921 | C349: 俞悦 | D349: 教育综合知识62.000,音乐（高中）120.000 | E349: 182 | F349: 29.12 | G349: 82.60 | H349: 49.56 | I349: 78.68
A362: 2024年临川区公开招聘中小学教师考生成绩表
A363: 招聘岗位：高中-英语（县镇岗位）
A364: 抽签顺序号 | B364: 准考证号码 | C364: 姓 名 | D364: 文化考试成绩 | F364: 笔试成绩折算分 | G364: 面试 成绩 | H364: 面试成绩折算分 | I364: 总成绩 | J364: 备注
D365: 综合知识成绩及学科专业成绩 | E365: 总分
A366: 1 | B366: 153250208818,253250208818 | C366: 游文晖 | D366: 教育综合知识82.500,英语（高中）113.000 | E366: 195.5 | F366: 39.10 | G366: 82.67 | H366: 41.34 | I366: =F366+H366 -> 80.44
A367: 2 | B367: 153250208211,253250208211 | C367: 张雅兰 | D367: 教育综合知识75.000,英语（高中）113.500 | E367: 188.5 | F367: 37.70 | G367: 75.67 | H367: 37.84 | I367: 75.54
A368: 3 | B368: 153010905504,253010905504 | C368: 张莉霞 | D368: 教育综合知识83.000,英语（高中）116.500 | E368: 199.5 | F368: 39.90 | G368: 85.33 | H368: 42.67 | I368: 82.57
A369: 4 | B369: 153250207919,253250207919 | C369: 余翠翠 | D369: 教育综合知识82.500,英语（高中）110.000 | E369: 192.5 | F369: 38.50 | G369: 82.33 | H369: 41.17 | I369: 79.67
A370: 5 | B370: 153010905918,253010905918 | C370: 周琳 | D370: 教育综合知识83.000,英语（高中）100.000 | E370: 183 | F370: 36.60 | G370: 85.67 | H370: 42.84 | I370: 79.44
A371: 6 | B371: 153010905008,253010905008 | C371: 陈芳 | D371: 教育综合知识78.500,英语（高中）117.500 | E371: 196 | F371: 39.20 | G371: 81.67 | H371: 40.84 | I371: 80.04
A381: 2024年临川区公开招聘中小学教师考生成绩表
A382: 招聘岗位：高中-英语（应届）（县镇岗位）龙津中学
A383: 抽签顺序号 | B383: 准考证号码 | C383: 姓 名 | D383: 文化考试成绩 | F383: 笔试成绩折算分 | G383: 面试 成绩 | H383: 面试成绩折算分 | I383: 总成绩 | J383: 备注
D384: 综合知识成绩及学科专业成绩 | E384: 总分
A385: 1 | B385: 153010904023,253010904023 | C385: 黄佳美 | D385: 教育综合知识53.500,英语（高中）110.500 | E385: 164 | F385: 32.80 | G385: 76.67 | H385: 38.34 | I385: =F385+H385 -> 71.14
A386: 2 | B386: 153250207907,253250207907 | C386: 刘纯颖 | D386: 教育综合知识83.500,英语（高中）110.000 | E386: 193.5 | F386: 38.70 | G386: 83.00 | H386: 41.50 | I386: =F386+H386 -> 80.20
... 20 more rows

Sheet 城区初中
A1: 2024年临川区公开招聘中小学教师考生成绩表
A2: 招聘岗位：初中-道德与法治（县镇岗位）龙津中学
A3: 抽签顺序号 | B3: 准考证号码 | C3: 姓 名 | D3: 文化考试成绩 | F3: 笔试成绩折算分 | G3: 面试 成绩 | H3: 面试成绩折算分 | I3: 总成绩 | J3: 备注
D4: 综合知识成绩及学科专业成绩 | E4: 总分
A5: 1 | B5: 153011400430,253011400430 | C5: 张瑶 | D5: 教育综合知识55.500,道德与法治（初中）131.000 | E5: 186.5 | F5: 37.30 | G5: 81.00 | H5: 40.50 | I5: =F5+H5 -> 77.80
A6: 2 | B6: 153250106307,253250106307 | C6: 刘子怡 | D6: 教育综合知识64.500,道德与法治（初中）119.000 | E6: 183.5 | F6: 36.70 | G6: 86.33 | H6: 43.17 | I6: 79.87
A7: 3 | B7: 153250106301,253250106301 | C7: 徐亚婷 | D7: 教育综合知识56.500,道德与法治（初中）119.500 | E7: 176 | F7: 35.20 | G7: 70.00 | H7: 35.00 | I7: 70.20
A21: 2024年临川区公开招聘中小学教师考生成绩表
A22: 招聘岗位：初中-化学（县镇岗位）
A23: 抽签顺序号 | B23: 准考证号码 | C23: 姓 名 | D23: 文化考试成绩 | F23: 笔试成绩折算分 | G23: 面试 成绩 | H23: 面试成绩折算分 | I23: 总成绩 | J23: 备注
D24: 综合知识成绩及学科专业成绩 | E24: 总分
A25: 1 | B25: 153011501519,253011501519 | C25: 邓昊 | D25: 教育综合知识59.500,化学（初中）89.500 | E25: 149 | F25: 29.80 | G25: 74.00 | H25: 37.00 | I25: =F25+H25 -> 66.80
A26: 2 | B26: 153011501004,253011501004 | C26: 张甜 | D26: 教育综合知识73.000,化学（初中）119.000 | E26: 192 | F26: 38.40 | G26: 84.67 | H26: 42.34 | I26: 80.74
A27: 3 | B27: 153250107909,253250107909 | C27: 骆兰 | D27: 教育综合知识69.500,化学（初中）108.000 | E27: 177.5 | F27: 35.50 | G27: 80.33 | H27: 40.17 | I27: 75.67
A28: 4 | B28: 153250107901,253250107901 | C28: 付磊 | D28: 教育综合知识70.500,化学（初中）111.500 | E28: 182 | F28: 36.40 | G28: 88.67 | H28: 44.34 | I28: 80.74
A29: 5 | B29: 153011501205,253011501205 | C29: 付文奇 | D29: 教育综合知识84.500,化学（初中）118.000 | E29: 202.5 | F29: 40.50 | G29: 85.33 | H29: 42.67 | I29: 83.17
A30: 6 | B30: 153250108011,253250108011 | C30: 刘冬花 | D30: 教育综合知识49.000,化学（初中）118.000 | E30: 167 | F30: 33.40 | G30: 82.67 | H30: 41.34 | I30: 74.74
A41: 2024年临川区公开招聘中小学教师考生成绩表
A42: 招聘岗位： 初中-化学（应届）（县镇岗位）
A43: 抽签顺序号 | B43: 准考证号码 | C43: 姓 名 | D43: 文化考试成绩 | F43: 笔试成绩折算分 | G43: 面试 成绩 | H43: 面试成绩折算分 | I43: 总成绩 | J43: 备注
D44: 综合知识成绩及学科专业成绩 | E44: 总分
A45: 1 | B45: 153250107824,253250107824 | C45: 张榕威 | D45: 教育综合知识41.500,化学（初中）112.500 | E45: 154 | F45: 30.80 | G45: 79.00 | H45: 39.50 | I45: =F45+H45 -> 70.30
A46: 2 | B46: 153011501724,253011501724 | C46: 吴晓颖 | D46: 教育综合知识77.000,化学（初中）102.500 | E46: 179.5 | F46: 35.90 | G46: 86.67 | H46: 43.34 | I46: 79.24
A47: 3 | B47: 153210401014,253210401014 | C47: 吴瑞辉 | D47: 教育综合知识82.500,化学（初中）128.500 | E47: 211 | F47: 42.20 | G47: 84.00 | H47: 42.00 | I47: 84.20
A48: 4 | B48: 153250107922,253250107922 | C48: 董文杰 | D48: 教育综合知识68.500,化学（初中）99.500 | E48: 168 | F48: 33.60 | G48: 83.67 | H48: 41.84 | I48: 75.44
A49: 5 | B49: 153250107829,253250107829 | C49: 夏悦 | D49: 教育综合知识66.500,化学（初中）88.500 | E49: 155 | F49: 31.00 | G49: 78.67 | H49: 39.34 | I49: 70.34
A50: 6 | B50: 153250107822,253250107822 | C50: 吴珍珍 | D50: 教育综合知识56.000,化学（初中）92.500 | E50: 148.5 | F50: 29.70 | G50: 79.33 | H50: 39.67 | I50: 69.37
A51: 7 | B51: 153250108005,253250108005 | C51: 张星月 | D51: 教育综合知识78.000,化学（初中）117.000 | E51: 195 | F51: 39.00 | G51: 82.00 | H51: 41.00 | I51: 80.00
A52: 8 | B52: 153250107828,253250107828 | C52: 邓欣 | D52: 教育综合知识39.000,化学（初中）113.500 | E52: 152.5 | F52: 30.50 | G52: 71.00 | H52: 35.50 | I52: 66.00
A61: 2024年临川区公开招聘中小学教师考生成绩表
A62: 招聘岗位：初中-美术（应届）（县镇岗位）龙津中学
A63: 抽签顺序号 | B63: 准考证号码 | C63: 姓 名 | D63: 文化考试成绩 | F63: 笔试成绩折算分 | G63: 面试 成绩 | H63: 面试成绩折算分 | I63: 总成绩 | J63: 备注
D64: 综合知识成绩及学科专业成绩 | E64: 总分
A65: 1 | B65: 153011602018,253011602018 | C65: 傅显晶 | D65: 教育综合知识83.500,美术（初中）117.500 | E65: 201 | F65: 32.16 | G65: 81.20 | H65: 48.72 | I65: =F65+H65 -> 80.88
A66: 2 | B66: 153220205509,253220205509 | C66: 刘昱 | D66: 教育综合知识76.500,美术（初中）118.000 | E66: 194.5 | F66: 31.12 | G66: 73.80 | H66: 44.28 | I66: =F66+H66 -> 75.40
A67: 3 | B67: 153250107106,253250107106 | C67: 汪欣雨 | D67: 教育综合知识77.000,美术（初中）121.000 | E67: 198 | F67: 31.68 | G67: 87.40 | H67: 52.44 | I67: =F67+H67 -> 84.12
A81: 2024年临川区公开招聘中小学教师考生成绩表
A82: 招聘岗位：初中-生物（应届）（县镇岗位）第五实验学校
A83: 抽签顺序号 | B83: 准考证号码 | C83: 姓 名 | D83: 文化考试成绩 | F83: 笔试成绩折算分 | G83: 面试 成绩 | H83: 面试成绩折算分 | I83: 总成绩 | J83: 备注
D84: 综合知识成绩及学科专业成绩 | E84: 总分
A85: 1 | B85: 153250108408,253250108408 | C85: 曾玲玲 | D85: 教育综合知识62.500,生物学（初中）88.000 | E85: 150.5 | F85: 30.10 | G85: 77.67 | H85: 38.84 | I85: =F85+H85 -> 68.94
A86: 2 | B86: 153250108426,253250108426 | C86: 付素平 | D86: 教育综合知识61.500,生物学（初中）97.000 | E86: 158.5 | F86: 31.70 | G86: 84.33 | H86: 42.17 | I86: =F86+H86 -> 73.87
A87: 3 | B87: 153011803301,253011803301 | C87: 董泰嘉 | D87: 教育综合知识50.500,生物学（初中）103.500 | E87: 154.0 | F87: 30.80 | G87: 83.50 | H87: 41.75 | I87: =F87+H87 -> 72.55
A101: 2024年临川区公开招聘中小学教师考生成绩表
A102: 招聘岗位：初中-生物（县镇岗位）龙津中学
A103: 抽签顺序号 | B103: 准考证号码 | C103: 姓 名 | D103: 文化考试成绩 | F103: 笔试成绩折算分 | G103: 面试 成绩 | H103: 面试成绩折算分 | I103: 总成绩 | J103: 备注
D104: 综合知识成绩及学科专业成绩 | E104: 总分
A105: 1 | B105: 153250108418,253250108418 | C105: 封昀 | D105: 教育综合知识41.500,生物学（初中）104.000 | E105: 145.5 | F105: 29.10 | G105: 86.67 | H105: 43.34 | I105: =F105+H105 -> 72.44
A106: 2 | B106: 153011802815,253011802815 | C106: 许家君 | D106: 教育综合知识71.500,生物学（初中）122.500 | E106: 194 | F106: 38.80 | G106: 85.33 | H106: 42.67 | I106: =F106+H106 -> 81.47
A107: 3 | B107: 153060105006,253060105006 | C107: 刘姗 | D107: 教育综合知识71.000,生物学（初中）126.500 | E107: 197.5 | F107: 39.50 | G107: 85.50 | H107: 42.75 | I107: =F107+H107 -> 82.25
A121: 2024年临川区公开招聘中小学教师考生成绩表
A122: 招聘岗位：初中-数学（县镇岗位）第二实验学校
A123: 抽签顺序号 | B123: 准考证号码 | C123: 姓 名 | D123: 文化考试成绩 | F123: 笔试成绩折算分 | G123: 面试 成绩 | H123: 面试成绩折算分 | I123: 总成绩 | J123: 备注
D124: 综合知识成绩及学科专业成绩 | E124: 总分
A125: 1 | B125: 153250104918,253250104918 | C125: 周湾 | D125: 教育综合知识79.500,数学（初中）125.500 | E125: 205 | F125: 41.00 | G125: 84.33 | H125: 42.17 | I125: =F125+H125 -> 83.17
A126: 2 | B126: 153250104826,253250104826 | C126: 许思婷 | D126: 教育综合知识85.500,数学（初中）127.500 | E126: 213 | F126: 42.60 | G126: 86.33 | H126: 43.17 | I126: =F126+H126 -> 85.77
A127: 3 | B127: 153060102608,253060102608 | C127: 吴梦媛 | D127: 教育综合知识78.000,数学（初中）112.000 | E127: 190 | F127: 38.00 | G127: 82.00 | H127: 41.00 | I127: =F127+H127 -> 79.00
A141: 2024年临川区公开招聘中小学教师考生成绩表
A142: 招聘岗位：初中-数学（应届）（县镇岗位）第五实验学校
A143: 抽签顺序号 | B143: 准考证号码 | C143: 姓 名 | D143: 文化考试成绩 | F143: 笔试成绩折算分 | G143: 面试 成绩 | H143: 面试成绩折算分 | I143: 总成绩 | J143: 备注
D144: 综合知识成绩及学科专业成绩 | E144: 总分
A145: 1 | B145: 153250104806,253250104806 | C145: 许慧忆 | D145: 教育综合知识81.000,数学（初中）111.000 | E145: 192 | F145: 38.40 | G145: 84.33 | H145: 42.17 | I145: =F145+H145 -> 80.57
A146: 2 | B146: 153010802213,253010802213 | C146: 吴芳婷 | D146: 教育综合知识70.000,数学（初中）119.000 | E146: 189 | F146: 37.80 | G146: 83.00 | H146: 41.50 | I146: 79.30
A147: 3 | B147: 153250104820,253250104820 | C147: 黄洋 | D147: 教育综合知识50.500,数学（初中）96.000 | E147: 146.5 | F147: 29.30 | G147: 77.00 | H147: 38.50 | I147: 67.80
A161: 2024年临川区公开招聘中小学教师考生成绩表
A162: 招聘岗位：初中-体育与健康（应届） （县镇岗位）
A163: 抽签顺序号 | B163: 准考证号码 | C163: 姓 名 | D163: 文化考试成绩 | F163: 笔试成绩折算分 | G163: 面试 成绩 | H163: 面试成绩折算分 | I163: 总成绩 | J163: 备注
D164: 综合知识成绩及学科专业成绩 | E164: 总分
A165: 1 | B165: 153250106517,253250106517 | C165: 李嘉欣 | D165: 教育综合知识81.000,体育与健康（初中）122.000 | E165: 203 | F165: 40.60 | G165: 82.67 | H165: 41.34 | I165: =F165+H165 -> 81.94
A166: 2 | B166: 153210300801,253210300801 | C166: 曾兴豪 | D166: 教育综合知识71.500,体育与健康（初中）105.000 | E166: 176.5 | F166: 35.30 | G166: 83.00 | H166: 41.50 | I166: 76.80
A167: 3 | B167: 153250106613,253250106613 | C167: 裴伟豪 | D167: 教育综合知识62.500,体育与健康（初中）112.000 | E167: 174.5 | F167: 34.90 | G167: 81.67 | H167: 40.84 | I167: 75.74
A168: 4 | B168: 153011402115,253011402115 | C168: 王中伟 | D168: 教育综合知识69.500,体育与健康（初中）128.500 | E168: 198 | F168: 39.60 | G168: 87.33 | H168: 43.67 | I168: 83.27
A169: 5 | B169: 153250106624,253250106624 | C169: 饶佳明 | D169: 教育综合知识75.000,体育与健康（初中）94.500 | E169: 169.5 | F169: 33.90 | G169: 85.67 | H169: 42.84 | I169: 76.74
A170: 6 | B170: 153011402011,253011402011 | C170: 董正棋 | D170: 教育综合知识73.000,体育与健康（初中）126.500 | E170: 199.5 | F170: 39.90 | G170: 88.67 | H170: 44.34 | I170: 84.24
A181: 2024年临川区公开招聘中小学教师考生成绩表
A182: 招聘岗位：初中-物理（县镇岗位）
A183: 抽签顺序号 | B183: 准考证号码 | C183: 姓 名 | D183: 文化考试成绩 | F183: 笔试成绩折算分 | G183: 面试 成绩 | H183: 面试成绩折算分 | I183: 总成绩 | J183: 备注
D184: 综合知识成绩及学科专业成绩 | E184: 总分
A185: 1 | B185: 153250108305,253250108305 | C185: 许瑶 | D185: 教育综合知识36.000,物理（初中）114.000 | E185: 150 | F185: 30.00 | G185: 75.67 | H185: 37.84 | I185: =F185+H185 -> 67.84
A186: 2 | B186: 153040602719,253040602719 | C186: 张俊峰 | D186: 教育综合知识36.000,物理（初中）113.000 | E186: 149 | F186: 29.80 | G186: 77.33 | H186: 38.67 | I186: =F186+H186 -> 68.47
A187: 3 | B187: 153040603030,253040603030 | C187: 王大庆 | D187: 教育综合知识49.500,物理（初中）106.500 | E187: 156 | F187: 31.20 | G187: 84.67 | H187: 42.34 | I187: =F187+H187 -> 73.54
A188: 4 | B188: 153250108303,253250108303 | C188: 王洪强 | D188: 教育综合知识49.500,物理（初中）106.000 | E188: 155.5 | F188: 31.10 | G188: 81.00 | H188: 40.50 | I188: =F188+H188 -> 71.60
A189: 5 | B189: 153250108113,253250108113 | C189: 吴建彪 | D189: 教育综合知识53.000,物理（初中）130.500 | E189: 183.5 | F189: 36.70 | G189: 79.33 | H189: 39.67 | I189: =F189+H189 -> 76.37
A201: 2024年临川区公开招聘中小学教师考生成绩表
A202: 招聘岗位：初中-物理（应届）（县镇岗位）
A203: 抽签顺序号 | B203: 准考证号码 | C203: 姓 名 | D203: 文化考试成绩 | F203: 笔试成绩折算分 | G203: 面试 成绩 | H203: 面试成绩折算分 | I203: 总成绩 | J203: 备注
D204: 综合知识成绩及学科专业成绩 | E204: 总分
A205: 1 | B205: 153250108120,253250108120 | C205: 熊坤 | D205: 教育综合知识71.500,物理（初中）135.000 | E205: 206.5 | F205: 41.30 | G205: 84.67 | H205: 42.34 | I205: =F205+H205 -> 83.64
A206: 2 | B206: 153250108307,253250108307 | C206: 熊悦辰 | D206: 教育综合知识26.500,物理（初中）105.000 | E206: 131.5 | F206: 26.30 | G206: 72.33 | H206: 36.17 | I206: 62.47
A207: 3 | B207: 153011303413,253011303413 | C207: 熊健 | D207: 教育综合知识73.000,物理（初中）138.500 | E207: 211.5 | F207: 42.30 | G207: 83.00 | H207: 41.50 | I207: 83.80
A208: 4 | B208: 153040602712,253040602712 | C208: 帅炎 | D208: 教育综合知识83.000,物理（初中）125.000 | E208: 208 | F208: 41.60 | G208: 83.33 | H208: 41.67 | I208: 83.27
A209: 5 | B209: 153250108219,253250108219 | C209: 夏紫薇 | D209: 教育综合知识54.500,物理（初中）115.500 | E209: 170 | F209: 34.00 | G209: 77.00 | H209: 38.50 | I209: 72.50
A210: 6 | B210: 153050106218,253050106218 | C210: 李钰萍 | D210: 教育综合知识43.500,物理（初中）86.000 | E210: 129.5 | F210: 25.90 | G210: 71.67 | H210: 35.84 | I210: 61.74
A211: 7 | B211: 153011303523,253011303523 | C211: 刘志威 | D211: 教育综合知识61.000,物理（初中）123.500 | E211: 184.5 | F211: 36.90 | G211: 83.67 | H211: 41.84 | I211: 78.74
A212: 8 | B212: 153250108205,253250108205 | C212: 华鑫 | D212: 教育综合知识40.000,物理（初中）98.000 | E212: 138 | F212: 27.60 | G212: 缺考 | I212: 27.60
A221: 2024年临川区公开招聘中小学教师考生成绩表
A222: 招聘岗位：初中-心理健康（县镇岗位）
A223: 抽签顺序号 | B223: 准考证号码 | C223: 姓 名 | D223: 文化考试成绩 | F223: 笔试成绩折算分 | G223: 面试 成绩 | H223: 面试成绩折算分 | I223: 总成绩 | J223: 备注
D224: 综合知识成绩及学科专业成绩 | E224: 总分
A225: 1 | B225: 153250108714,253250108714 | C225: 邹玉芳 | D225: 教育综合知识55.000,心理健康教育（初中）110.500 | E225: 165.5 | F225: 33.10 | G225: 78.67 | H225: 39.34 | I225: =F225+H225 -> 72.44
A226: 2 | B226: 153011002908,253011002908 | C226: 李丽红 | D226: 教育综合知识51.500,心理健康教育（初中）110.500 | E226: 162.0 | F226: 32.40 | G226: 81.00 | H226: 40.50 | I226: 72.90
A227: 3 | B227: 153250108813,253250108813 | C227: 吴瑜 | D227: 教育综合知识77.000,心理健康教育（初中）126.000 | E227: 203.0 | F227: 40.60 | G227: 85.33 | H227: 42.67 | I227: 83.27
A228: 4 | B228: 153250108718,253250108718 | C228: 吴嘉思 | D228: 教育综合知识65.500,心理健康教育（初中）115.000 | E228: 180.5 | F228: 36.10 | G228: 79.00 | H228: 39.50 | I228: 75.60
A229: 5 | B229: 153250108805,253250108805 | C229: 刘旻钰 | D229: 教育综合知识59.000,心理健康教育（初中）113.000 | E229: 172.0 | F229: 34.40 | G229: 84.67 | H229: 42.34 | I229: 76.74
A230: 6 | B230: 153250108705,253250108705 | C230: 肖遥 | D230: 教育综合知识63.500,心理健康教育（初中）117.500 | E230: 181.0 | F230: 36.20 | G230: 86.00 | H230: 43.00 | I230: 79.20
A231: 7 | B231: 153011002710,253011002710 | C231: 郑日 | D231: 教育综合知识75.500,心理健康教育（初中）117.000 | E231: 192.5 | F231: 38.50 | G231: 83.00 | H231: 41.50 | I231: 80.00
A241: 2024年临川区公开招聘中小学教师考生成绩表
A242: 招聘岗位：初中-音乐（县镇岗位）
A243: 抽签顺序号 | B243: 准考证号码 | C243: 姓 名 | D243: 文化考试成绩 | F243: 笔试成绩折算分 | G243: 面试 成绩 | H243: 面试成绩折算分 | I243: 总成绩 | J243: 备注
D244: 综合知识成绩及学科专业成绩 | E244: 总分
A245: 1 | B245: 153011603510,253011603510 | C245: 纪云 | D245: 教育综合知识75.500,音乐（初中）98.500 | E245: 174 | F245: 27.84 | G245: 84.00 | H245: 50.40 | I245: =F245+H245 -> 78.24
A246: 2 | B246: 153240200122,253240200122 | C246: 钟晔 | D246: 教育综合知识85.000,音乐（初中）119.000 | E246: 204 | F246: 32.64 | G246: 81.00 | H246: 48.60 | I246: 81.24
A247: 3 | B247: 153011603827,253011603827 | C247: 胡逸伟 | D247: 教育综合知识71.500,音乐（初中）106.000 | E247: 177.5 | F247: 28.40 | G247: 87.60 | H247: 52.56 | I247: 80.96
A248: 4 | B248: 153210304319,253210304319 | C248: 黄淑贞 | D248: 教育综合知识76.500,音乐（初中）94.500 | E248: 171 | F248: 27.36 | G248: 82.20 | H248: 49.32 | I248: 76.68
A249: 5 | B249: 153250107301,253250107301 | C249: 罗雅娜 | D249: 教育综合知识70.500,音乐（初中）95.000 | E249: 165.5 | F249: 26.48 | G249: 82.20 | H249: 49.32 | I249: 75.80
A250: 6 | B250: 153011603530,253011603530 | C250: 马爽爽 | D250: 教育综合知识78.500,音乐（初中）118.000 | E250: 196.5 | F250: 31.44 | G250: 85.40 | H250: 51.24 | I250: 82.68
A261: 2024年临川区公开招聘中小学教师考生成绩表
A262: 招聘岗位：初中-英语（应届）（县镇岗位）
A263: 抽签顺序号 | B263: 准考证号码 | C263: 姓 名 | D263: 文化考试成绩 | F263: 笔试成绩折算分 | G263: 面试 成绩 | H263: 面试成绩折算分 | I263: 总成绩 | J263: 备注
D264: 综合知识成绩及学科专业成绩 | E264: 总分
A265: 1 | B265: 153250106002,253250106002 | C265: 张雨轩 | D265: 教育综合知识84.000,英语（初中）115.500 | E265: 199.5 | F265: 39.90 | G265: 82.67 | H265: 41.34 | I265: =F265+H265 -> 81.24
A266: 2 | B266: 153010704507,253010704507 | C266: 梁谦 | D266: 教育综合知识70.500,英语（初中）119.500 | E266: 190 | F266: 38.00 | G266: 80.67 | H266: 40.34 | I266: 78.34
A267: 3 | B267: 153011600722,253011600722 | C267: 黄子文 | D267: 教育综合知识80.000,英语（初中）113.000 | E267: 193 | F267: 38.60 | G267: 81.67 | H267: 40.84 | I267: 79.44
A268: 4 | B268: 153011600828,253011600828 | C268: 胡崇瑜 | D268: 教育综合知识80.000,英语（初中）108.500 | E268: 188.5 | F268: 37.70 | G268: 85.67 | H268: 42.84 | I268: 80.54
A269: 5 | B269: 153011600610,253011600610 | C269: 杨睛 | D269: 教育综合知识76.500,英语（初中）113.000 | E269: 189.5 | F269: 37.90 | G269: 80.67 | H269: 40.34 | I269: 78.24
A270: 6 | B270: 153250106123,253250106123 | C270: 许霞 | D270: 教育综合知识83.000,英语（初中）116.750 | E270: 199.75 | F270: 39.95 | G270: 85.00 | H270: 42.50 | I270: 82.45
A281: 2024年临川区公开招聘中小学教师考生成绩表
A282: 招聘岗位： 初中-英语（县镇岗位）临川三中
A283: 抽签顺序号 | B283: 准考证号码 | C283: 姓 名 | D283: 文化考试成绩 | F283: 笔试成绩折算分 | G283: 面试 成绩 | H283: 面试成绩折算分 | I283: 总成绩 | J283: 备注
D284: 综合知识成绩及学科专业成绩 | E284: 总分
A285: 1 | B285: 153250106129,253250106129 | C285: 祝婷 | D285: 教育综合知识80.000,英语（初中）112.500 | E285: 192.5 | F285: 38.50 | G285: 84.67 | H285: 42.34 | I285: =F285+H285 -> 80.84
A286: 2 | B286: 153010707708,253010707708 | C286: 陈草 | D286: 教育综合知识85.000,英语（初中）108.000 | E286: 193.0 | F286: 38.60 | G286: 85.67 | H286: 42.84 | I286: =F286+H286 -> 81.44
A287: 3 | B287: 153220204807,253220204807 | C287: 尧琼 | D287: 教育综合知识78.000,英语（初中）114.000 | E287: 192.0 | F287: 38.40 | G287: 87.00 | H287: 43.50 | I287: =F287+H287 -> 81.90
A301: 2024年临川区公开招聘中小学教师考生成绩表
A302: 招聘岗位：初中-语文（县镇岗位）第二实验学校
A303: 抽签顺序号 | B303: 准考证号码 | C303: 姓 名 | D303: 文化考试成绩 | F303: 笔试成绩折算分 | G303: 面试 成绩 | H303: 面试成绩折算分 | I303: 总成绩 | J303: 备注
D304: 综合知识成绩及学科专业成绩 | E304: 总分
A305: 1 | B305: 153010602005,253010602005 | C305: 吴巧巧 | D305: 教育综合知识74.000,语文（初中）115.500 | E305: 189.5 | F305: 37.90 | G305: 80.67 | H305: 40.34 | I305: =F305+H305 -> 78.24
A306: 2 | B306: 153250104007,253250104007 | C306: 单佳琪 | D306: 教育综合知识59.000,语文（初中）125.000 | E306: 184 | F306: 36.80 | G306: 83.00 | H306: 41.50 | I306: 78.30
A307: 3 | B307: 153250103807,253250103807 | C307: 李凯玲 | D307: 教育综合知识84.500,语文（初中）96.500 | E307: 181 | F307: 36.20 | G307: 87.33 | H307: 43.67 | I307: 79.87
A321: 2024年临川区公开招聘中小学教师考生成绩表
A322: 招聘岗位：初中-语文（应届）（县镇岗位）龙津中学
A323: 抽签顺序号 | B323: 准考证号码 | C323: 姓 名 | D323: 文化考试成绩 | F323: 笔试成绩折算分 | G323: 面试 成绩 | H323: 面试成绩折算分 | I323: 总成绩 | J323: 备注
D324: 综合知识成绩及学科专业成绩 | E324: 总分
A325: 1 | B325: 153250104101,253250104101 | C325: 梁兰芳 | D325: 教育综合知识81.500,语文（初中）84.500 | E325: 166 | F325: 33.20 | G325: 76.67 | H325: 38.34 | I325: =F325+H325 -> 71.54
A326: 2 | B326: 153030205904,253030205904 | C326: 潘菲芳 | D326: 教育综合知识58.500,语文（初中）108.500 | E326: 167 | F326: 33.40 | G326: 78.67 | H326: 39.34 | I326: =F326+H326 -> 72.74
A327: 3 | B327: 153250104224,253250104224 | C327: 胡佳欢 | D327: 教育综合知识82.500,语文（初中）100.500 | E327: 183 | F327: 36.60 | G327: 83.33 | H327: 41.67 | I327: =F327+H327 -> 78.27

Sheet 农村初中
A1: 2024年临川区公开招聘中小学教师考生成绩表
A2: 招聘岗位：初中-化学（农村岗位）大岗中学
A3: 抽签顺序号 | B3: 准考证号码 | C3: 姓 名 | D3: 文化考试成绩 | F3: 笔试成绩折算分 | G3: 面试 成绩 | H3: 面试成绩折算分 | I3: 总成绩 | J3: 备注
D4: 综合知识成绩及学科专业成绩 | E4: 总分
A5: 1 | B5: 153060104611,253060104611 | C5: 张超 | D5: 教育综合知识38.500,化学（初中）117.500 | E5: 156 | F5: 31.20 | G5: 78.00 | H5: 39.00 | I5: =F5+H5 -> 70.20
A6: 2 | B6: 153250107907,253250107907 | C6: 张志军 | D6: 教育综合知识63.500,化学（初中）99.000 | E6: 162.5 | F6: 32.50 | G6: 82.00 | H6: 41.00 | I6: =F6+H6 -> 73.50
A7: 3 | B7: 153011501226,253011501226 | C7: 卢娜莎 | D7: 教育综合知识61.000,化学（初中）93.000 | E7: 154 | F7: 30.80 | G7: 87.67 | H7: 43.84 | I7: =F7+H7 -> 74.64
A21: 2024年临川区公开招聘中小学教师考生成绩表
A22: 招聘岗位：初中-数学（农村岗位）罗针中学
A23: 抽签顺序号 | B23: 准考证号码 | C23: 姓 名 | D23: 文化考试成绩 | F23: 笔试成绩折算分 | G23: 面试 成绩 | H23: 面试成绩折算分 | I23: 总成绩 | J23: 备注
D24: 综合知识成绩及学科专业成绩 | E24: 总分
A25: 1 | B25: 153250104929,253250104929 | C25: 邓英祥 | D25: 教育综合知识57.500,数学（初中）116.500 | E25: 174 | F25: 34.80 | G25: 84.00 | H25: 42.00 | I25: =F25+H25 -> 76.80
A26: 2 | B26: 153250104619,253250104619 | C26: 张凤琴 | D26: 教育综合知识66.000,数学（初中）107.500 | E26: 173.5 | F26: 34.70 | G26: 86.00 | H26: 43.00 | I26: =F26+H26 -> 77.70
A27: 3 | B27: 153010800605,253010800605 | C27: 胡玲 | D27: 教育综合知识85.000,数学（初中）112.000 | E27: 197 | F27: 39.40 | G27: 87.00 | H27: 43.50 | I27: =F27+H27 -> 82.90
A41: 2024年临川区公开招聘中小学教师考生成绩表
A42: 招聘岗位：初中-英语（限本县户籍）（农村岗位）
A43: 抽签顺序号 | B43: 准考证号码 | C43: 姓 名 | D43: 文化考试成绩 | F43: 笔试成绩折算分 | G43: 面试 成绩 | H43: 面试成绩折算分 | I43: 总成绩 | J43: 备注
D44: 综合知识成绩及学科专业成绩 | E44: 总分
A45: 1 | B45: 153250105301,253250105301 | C45: 王丽霞 | D45: 教育综合知识70.000,英语（初中）112.500 | E45: 182.5 | F45: 36.50 | G45: 81.67 | H45: 40.84 | I45: =F45+H45 -> 77.34
A46: 2 | B46: 153011600516,253011600516 | C46: 邓琪 | D46: 教育综合知识79.500,英语（初中）109.000 | E46: 188.5 | F46: 37.70 | G46: 75.00 | H46: 37.50 | I46: 75.20
A47: 3 | B47: 153250105818,253250105818 | C47: 付婷 | D47: 教育综合知识77.500,英语（初中）105.500 | E47: 183 | F47: 36.60 | G47: 80.33 | H47: 40.17 | I47: 76.77
A48: 4 | B48: 153250106118,253250106118 | C48: 芦尊 | D48: 教育综合知识80.000,英语（初中）108.000 | E48: 188 | F48: 37.60 | G48: 82.33 | H48: 41.17 | I48: 78.77
A49: 5 | B49: 153250105312,253250105312 | C49: 周宇轩 | D49: 教育综合知识71.000,英语（初中）109.500 | E49: 180.5 | F49: 36.10 | G49: 84.67 | H49: 42.34 | I49: 78.44
A50: 6 | B50: 153010705227,253010705227 | C50: 唐思洋 | D50: 教育综合知识79.000,英语（初中）121.500 | E50: 200.5 | F50: 40.10 | G50: 81.00 | H50: 40.50 | I50: 80.60
A61: 2024年临川区公开招聘中小学教师考生成绩表
A62: 招聘岗位：初中-英语（农村岗位）罗针中学
A63: 抽签顺序号 | B63: 准考证号码 | C63: 姓 名 | D63: 文化考试成绩 | F63: 笔试成绩折算分 | G63: 面试 成绩 | H63: 面试成绩折算分 | I63: 总成绩 | J63: 备注
D64: 综合知识成绩及学科专业成绩 | E64: 总分
A65: 1 | B65: 153010706814,253010706814 | C65: 许雨慧 | D65: 教育综合知识88.500,英语（初中）112.000 | E65: 200.5 | F65: 40.10 | G65: 84.33 | H65: 42.17 | I65: =F65+H65 -> 82.27
A66: 2 | B66: 153250106130,253250106130 | C66: 汪飞琴 | D66: 教育综合知识79.000,英语（初中）112.500 | E66: 191.5 | F66: 38.30 | G66: 82.33 | H66: 41.17 | I66: 79.47
A67: 3 | B67: 153060103224,253060103224 | C67: 刘婷 | D67: 教育综合知识77.000,英语（初中）113.500 | E67: 190.5 | F67: 38.10 | G67: 84.33 | H67: 42.17 | I67: 80.27
A81: 2024年临川区公开招聘中小学教师考生成绩表
A82: 招聘岗位：初中-语文（农村岗位）
A83: 抽签顺序号 | B83: 准考证号码 | C83: 姓 名 | D83: 文化考试成绩 | F83: 笔试成绩折算分 | G83: 面试 成绩 | H83: 面试成绩折算分 | I83: 总成绩 | J83: 备注
D84: 综合知识成绩及学科专业成绩 | E84: 总分
A85: 1 | B85: 153050103922,253050103922 | C85: 傅淑婉 | D85: 教育综合知识78.500,语文（初中）99.000 | E85: 177.5 | F85: 35.50 | G85: 76.00 | H85: 38.00 | I85: =F85+H85 -> 73.50
A86: 2 | B86: 153250103907,253250103907 | C86: 何诗意 | D86: 教育综合知识73.000,语文（初中）109.000 | E86: 182 | F86: 36.40 | G86: 78.67 | H86: 39.34 | I86: 75.74
A87: 3 | B87: 153250103801,253250103801 | C87: 陈亚南 | D87: 教育综合知识75.000,语文（初中）113.000 | E87: 188 | F87: 37.60 | G87: 77.67 | H87: 38.84 | I87: 76.44
A88: 4 | B88: 153010600518,253010600518 | C88: 廖思甜 | D88: 教育综合知识69.500,语文（初中）105.500 | E88: 175 | F88: 35.00 | G88: 75.00 | H88: 37.50 | I88: 72.50
A89: 5 | B89: 153250103729,253250103729 | C89: 艾萌 | D89: 教育综合知识78.500,语文（初中）107.750 | E89: 186.25 | F89: 37.25 | G89: 82.67 | H89: 41.34 | I89: 78.59
A90: 6 | B90: 153011704730,253011704730 | C90: 黄宇璐 | D90: 教育综合知识78.000,语文（初中）103.000 | E90: 181 | F90: 36.20 | G90: 79.00 | H90: 39.50 | I90: 75.70

Sheet 特教
A1: 2024年临川区公开招聘中小学教师考生成绩表
A2: 招聘岗位：小学-体育与健康（县镇岗位）临川区特殊教育学校
A3: 抽签顺序号 | B3: 准考证号码 | C3: 姓 名 | D3: 文化考试成绩 | F3: 笔试成绩折算分 | G3: 面试 成绩 | H3: 面试成绩折算分 | I3: 总成绩 | J3: 备注
D4: 综合知识成绩及学科专业成绩 | E4: 总分
A5: 1 | B5: 153011000530,253011000530 | C5: 吴祎 | D5: 教育综合知识26.000,体育与健康（小学）101.500 | E5: 127.5 | F5: 25.50 | G5: 84.67 | H5: 42.34 | I5: =F5+H5 -> 67.84
A6: 2 | B6: 153210106913,253210106913 | C6: 吴志强 | D6: 教育综合知识57.000,体育与健康（小学）118.500 | E6: 175.5 | F6: 35.10 | G6: 84.67 | H6: 42.34 | I6: =F6+H6 -> 77.44
A7: 3 | B7: 153010502317,253010502317 | C7: 刘文明 | D7: 教育综合知识63.000,体育与健康（小学）95.500 | E7: 158.5 | F7: 31.70 | G7: 缺考 | I7: =F7+H7 -> 31.70
A20: 2024年临川区公开招聘中小学教师考生成绩表
A21: 招聘岗位：小学-音乐（县镇岗位）临川区特殊教育学校
A22: 抽签顺序号 | B22: 准考证号码 | C22: 姓 名 | D22: 文化考试成绩 | F22: 笔试成绩折算分 | G22: 面试 成绩 | H22: 面试成绩折算分 | I22: 总成绩 | J22: 备注
D23: 综合知识成绩及学科专业成绩 | E23: 总分
A24: 1 | B24: 153011202701,253011202701 | C24: 姚雅馨 | D24: 教育综合知识58.500,音乐（小学）87.500 | E24: 146 | F24: 23.36 | G24: 76.20 | H24: 45.72 | I24: =F24+H24 -> 69.08
A25: 2 | B25: 153250205828,253250205828 | C25: 谢芊媛 | D25: 教育综合知识65.500,音乐（小学）97.500 | E25: 163 | F25: 26.08 | G25: 77.80 | H25: 46.68 | I25: =F25+H25 -> 72.76
A26: 3 | B26: 153011202819,253011202819 | C26: 胡雯 | D26: 教育综合知识78.000,音乐（小学）111.000 | E26: 189 | F26: 30.24 | G26: 82.00 | H26: 49.20 | I26: =F26+H26 -> 79.44

Sheet Sheet1
